bitfinex/quotes_SOLUSD_20241029
["timestamp","ask_amount","ask_price","bid_price","bid_amount"]
[1730209668246,7.57655064,179.72,179.7,2.22852487]
[1730209668447,7.57655064,179.72,179.71,2.22850351]
[1730209668738,7.57655064,179.72,179.71,2.22850272]
[1730209669135,37.57655064,179.72,179.71,2.22850272]
[1730209669721,7.57655064,179.72,179.71,2.22850272]
[1730209671244,37.57655064,179.72,179.71,2.22850272]
[1730209671954,187.2238372,179.72,179.71,2.22850272]
[1730209672254,156.91763464,179.72,179.71,2.22850272]
[1730209673443,35.5642,179.72,179.71,2.22850272]
[1730209673653,66.91763464,179.72,179.71,2.22850272]
[1730209674660,37.57655064,179.72,179.71,2.22850272]
[1730209674867,30.0,179.72,179.71,2.22850272]
[1730209675258,37.57655064,179.72,179.71,2.22850272]
[1730209675454,37.57655064,179.72,179.68,19.4784]
[1730209675455,37.57655064,179.72,179.69,5.565]
[1730209675670,7.57655064,179.72,179.69,19.4778]
[1730209675877,7.57655064,179.72,179.69,13.9128]
[1730209676251,7.57655064,179.71,179.69,13.9128]
[1730209676658,7.57655064,179.72,179.69,13.9128]
[1730209677151,7.57655064,179.71,179.69,13.9128]
[1730209677554,7.57655064,179.7,179.66,19.4809]
[1730209677762,7.57655064,179.68,179.66,19.4809]
[1730209677962,7.57655064,179.69,179.66,19.4809]
[1730209678496,5.564,179.73,179.66,19.4809]
[1730209678497,7.57655064,179.71,179.66,27.05745064]
[1730209678779,7.57655064,179.72,179.67,7.57655064]
[1730209679278,7.57655064,179.71,179.66,27.05745064]
[1730209679477,7.57655064,179.7,179.62,19.71035944]
[1730209679776,7.57655064,179.66,179.62,11.35995944]
[1730209679972,7.57655064,179.66,179.62,18.93651008]
[1730209680181,7.57655064,179.65,179.62,11.35995944]
[1730209680881,7.57655064,179.66,179.62,5.79275944]
[1730209681060,5.5645,179.71,179.62,19.71095944]
[1730209681271,23.776884,179.7,179.64,7.57655064]
[1730209681581,7.57655064,179.69,179.64,7.57655064]
[1730209682575,7.57655064,179.69,179.65,19.4822]
[1730209683579,7.57655064,179.68,179.65,19.4822]
[1730209684189,7.57655064,179.67,179.65,19.4822]
[1730209684362,7.57655064,179.68,179.65,19.4822]
[1730209684564,7.57655064,179.69,179.65,13.9159]
[1730209685082,7.57655064,179.68,179.65,13.9159]
[1730209685789,70.0,179.74,179.65,13.9159]
[1730209685790,7.57655064,179.67,179.65,19.4822]
[1730209685970,7.57655064,179.66,179.65,19.4822]
[1730209687163,5.5646,179.71,179.65,13.9159]
[1730209687364,7.57655064,179.68,179.65,13.9159]
[1730209689184,70.0,179.74,179.65,13.9159]
[1730209689185,7.57655064,179.7,179.66,7.57655064]
[1730209689357,7.57655064,179.7,179.65,21.49245064]
[1730209690177,7.57655064,179.7,179.65,27.05875064]
[1730209690391,15.6066,179.75,179.67,7.57655064]
[1730209690568,7.57655064,179.69,179.65,19.4822]
[1730209690759,7.57655064,179.66,179.62,19.71075944]
[1730209690970,7.57655064,179.67,179.63,5.5669]
[1730209691166,7.57655064,179.67,179.63,19.4843]
[1730209692065,7.57655064,179.69,179.64,7.57655064]
[1730209692288,7.57655064,179.69,179.65,19.4822]
[1730209693074,7.57655064,179.7,179.65,27.05875064]
[1730209693391,7.57655064,179.69,179.65,19.4822]
[1730209693893,15.6066,179.75,179.68,7.57655064]
[1730209694066,7.57655064,179.73,179.68,7.57655064]
[1730209694272,4.16996641,179.74,179.65,19.4822]
[1730209694273,7.57655064,179.72,179.67,7.57655064]
[1730209694782,7.57655064,179.7,179.65,19.4822]
[1730209694993,7.57655064,179.69,179.65,54.89055064]
[1730209695164,7.57655064,179.72,179.67,27.05655064]
[1730209695873,7.57655064,179.73,179.69,7.57655064]
[1730209696082,7.57655064,179.72,179.67,27.05655064]
[1730209696273,7.57655064,179.71,179.67,19.48]
[1730209696778,7.57655064,179.71,179.67,27.05655064]
[1730209697089,7.57655064,179.7,179.67,19.48]
[1730209697288,7.57655064,179.69,179.67,13.9143]
[1730209697502,7.57655064,179.7,179.67,13.9143]
[1730209698075,7.57655064,179.71,179.67,13.9143]
[1730209698474,7.57655064,179.71,179.67,19.48]
[1730209699097,7.57655064,179.7,179.67,13.9143]
[1730209699300,7.57655064,179.68,179.65,5.5663]
[1730209699997,7.57655064,179.7,179.65,27.05875064]
[1730209700172,7.57655064,179.7,179.66,7.57655064]
[1730209700481,7.57655064,179.71,179.67,5.5657]
[1730209700683,7.57655064,179.71,179.67,19.48]
[1730209701080,7.57655064,179.69,179.67,13.9143]
[1730209701397,7.57655064,179.7,179.67,13.9143]
[1730209701698,7.57655064,179.69,179.67,13.9143]
[1730209701990,15.6066,179.75,179.67,13.9143]
[1730209702195,7.57655064,179.72,179.67,27.05655064]
[1730209702377,7.57655064,179.71,179.67,27.05655064]
[1730209702577,7.57655064,179.71,179.66,7.57655064]
[1730209703302,15.6066,179.75,179.67,7.57655064]
[1730209703598,7.57655064,179.71,179.67,7.57655064]
[1730209703801,7.57655064,179.72,179.67,7.57655064]
[1730209704182,7.57655064,179.71,179.67,7.57655064]
[1730209704505,7.57655064,179.71,179.68,5.5654]
[1730209705598,7.57655064,179.69,179.66,13.9144]
[1730209705807,7.57655064,179.68,179.66,13.9144]
[1730209706903,7.57655064,179.67,179.64,5.5666]
[1730209707105,7.57655064,179.67,179.63,13.9172]
[1730209707106,7.57655064,179.65,179.63,13.9172]
[1730209707890,7.57655064,179.64,179.62,5.78286262]
[1730209708096,7.57655064,179.63,179.62,5.78286262]
[1730209708611,7.57655064,179.63,179.57,13.922]
[1730209708921,7.57655064,179.58,179.57,13.922]
[1730209711385,7.57655064,179.58,179.55,0.5968412]
[1730209711592,7.57655064,179.56,179.55,0.5968412]
[1730209712199,70.0,179.63,179.55,0.5968412]
[1730209712407,7.57655064,179.57,179.55,0.5968412]
[1730209712808,7.57655064,179.58,179.55,0.5968412]
[1730209713195,7.57655064,179.57,179.55,0.5968412]
[1730209713388,7.57655064,179.57,179.55,6.1662412]
[1730209716807,7.57655064,179.56,179.55,0.5968412]
[1730209717305,7.57655064,179.56,179.55,6.1662412]
[1730209719701,7.57655064,179.57,179.55,6.1662412]
[1730209720101,7.57655064,179.56,179.55,0.5968412]
[1730209726590,106.92253464,179.56,179.55,0.5968412]
[1730209726792,136.92253464,179.56,179.55,0.5968412]
[1730209727106,156.92253464,179.56,179.47,19.501]
[1730209727408,7.57655064,179.49,179.47,19.501]
[1730209728299,7.57655064,179.49,179.45,7.57655064]
[1730209728693,7.57655064,179.5,179.45,7.57655064]
[1730209729420,7.57655064,179.52,179.47,7.57655064]
[1730209729798,7.57655064,179.51,179.47,7.57655064]
[1730209730599,7.57655064,179.51,179.48,5.5716]
[1730209731291,7.57655064,179.51,179.48,19.5007]
[1730209732902,7.57655064,179.5,179.48,13.9291]
[1730209734227,7.57655064,179.51,179.48,13.9291]
[1730209734521,7.57655064,179.51,179.47,7.57655064]
[1730209734903,7.57655064,179.51,179.46,7.57655064]
[1730209736420,7.57655064,179.51,179.47,7.57655064]
[1730209737111,7.57655064,179.51,179.48,5.5716]
[1730209738630,7.57655064,179.51,179.48,13.9291]
[1730209739124,70.0,179.58,179.48,21.50565064]
[1730209739303,7.57655064,179.52,179.48,13.9291]
[1730209739628,7.57655064,179.51,179.48,13.9291]
[1730209740205,7.57655064,179.49,179.45,13.9314]
[1730209740413,7.57655064,179.48,179.45,19.5039]
[1730209741429,7.57655064,179.47,179.45,13.9314]
[1730209741921,7.57655064,179.46,179.41,13.9339]
[1730209742232,7.57655064,179.45,179.41,19.5077]
[1730209742599,7.57655064,179.42,179.39,5.5744]
[1730209742798,7.57655064,179.4,179.39,5.5744]
[1730209743107,7.57655064,179.4,179.38,0.5968412]
[1730209743305,7.57655064,179.4,179.38,6.1714412]
[1730209743714,7.57655064,179.41,179.38,6.1714412]
[1730209743922,7.57655064,179.4,179.38,6.1714412]
[1730209744235,7.57655064,179.41,179.38,6.1714412]
[1730209744614,7.57655064,179.4,179.38,6.1714412]
[1730209746326,7.57655064,179.39,179.38,6.1714412]
[1730209746520,7.57655064,179.39,179.38,0.5968412]
[1730209746717,23.776884,179.42,179.38,0.5968412]
[1730209747026,7.57655064,179.4,179.38,6.1714412]
[1730209747406,5.5734,179.43,179.38,6.1714412]
[1730209747407,7.57655064,179.39,179.38,6.1714412]
[1730209748027,7.57655064,179.39,179.38,0.5968412]
[1730209748930,7.57655064,179.39,179.31,5.5768]
[1730209748931,23.776884,179.38,179.31,5.5768]
[1730209749128,7.57655064,179.32,179.29,13.9438]
[1730209749425,7.57655064,179.3,179.29,13.9438]
[1730209749608,7.57655064,179.3,179.27,5.5781]
[1730209749803,7.57655064,179.3,179.26,13.9461]
[1730209750033,7.57655064,179.27,179.26,13.9461]
[1730209750215,7.57655064,179.27,179.22,27.10555064]
[1730209750400,7.57655064,179.27,179.23,7.57655064]
[1730209751011,7.57655064,179.27,179.22,19.529]
[1730209751012,7.57655064,179.27,179.22,27.10555064]
[1730209751331,7.57655064,179.26,179.22,19.529]
[1730209751510,7.57655064,179.27,179.22,27.10555064]
[1730209751707,21.0668,179.31,179.22,27.10555064]
[1730209751920,7.57655064,179.25,179.22,19.529]
[1730209752123,7.57655064,179.26,179.22,27.10555064]
[1730209752425,7.57655064,179.26,179.22,19.529]
[1730209753826,21.0668,179.31,179.24,7.57655064]
[1730209754018,15.4898,179.31,179.26,7.57655064]
[1730209754531,7.57655064,179.3,179.26,7.57655064]
[1730209754832,7.57655064,179.31,179.26,7.57655064]
[1730209755332,7.57655064,179.33,179.29,7.57655064]
[1730209755540,7.57655064,179.33,179.28,7.57655064]
[1730209755911,7.57655064,179.34,179.29,27.09785064]
[1730209756119,16.3704,179.36,179.32,7.57655064]
[1730209756314,70.0,179.43,179.33,7.57655064]
[1730209756512,11.88380038,179.37,179.32,11.88380038]
[1730209756734,11.88380038,179.36,179.31,11.88380038]
[1730209756929,11.88380038,179.35,179.29,59.29280038]
[1730209757439,11.88380038,179.33,179.29,47.409]
[1730209758111,11.88380038,179.32,179.29,19.5213]
[1730209758317,11.88380038,179.32,179.29,13.9438]
[1730209758517,11.88380038,179.33,179.29,19.5213]
[1730209758940,11.88380038,179.33,179.29,31.40510038]
[1730209759116,11.88380038,179.34,179.29,31.40510038]
[1730209759816,11.88380038,179.33,179.29,31.40510038]
[1730209760212,21.3574,179.36,179.29,31.40510038]
[1730209760213,11.88380038,179.35,179.3,11.88380038]
[1730209760432,11.88380038,179.34,179.29,31.40510038]
[1730209760613,11.88380038,179.33,179.29,19.5213]
[1730209760814,11.88380038,179.32,179.29,19.5213]
[1730209761118,11.88380038,179.31,179.29,13.9438]
[1730209761428,21.3574,179.36,179.29,13.9438]
[1730209761429,11.88380038,179.3,179.29,13.9438]
[1730209761914,11.88380038,179.31,179.29,13.9438]
[1730209762109,11.88380038,179.31,179.26,11.88380038]
[1730209762322,11.88380038,179.3,179.25,25.83000038]
[1730209763631,11.88380038,179.3,179.25,31.40880038]
[1730209763943,11.88380038,179.33,179.28,11.88380038]
[1730209764313,11.88380038,179.32,179.27,11.88380038]
[1730209764508,11.88380038,179.31,179.26,11.88380038]
[1730209765636,11.88380038,179.32,179.27,11.88380038]
[1730209766014,11.88380038,179.31,179.26,11.88380038]
[1730209766422,11.88380038,179.32,179.28,11.88380038]
[1730209766622,11.88380038,179.32,179.27,11.88380038]
[1730209767246,11.88380038,179.32,179.28,5.5778]
[1730209768023,11.88380038,179.31,179.28,5.5778]
[1730209768339,11.88380038,179.32,179.28,5.5778]
[1730209768547,11.88380038,179.29,179.23,47.425]
[1730209768843,11.88380038,179.29,179.24,11.88380038]
[1730209769144,23.776884,179.33,179.23,59.30880038]
[1730209769145,11.88380038,179.28,179.23,59.30880038]
[1730209769715,11.88380038,179.29,179.25,11.88380038]
[1730209769947,11.88380038,179.3,179.26,11.88380038]
[1730209770245,11.88380038,179.3,179.27,5.5781]
[1730209770939,11.88380038,179.32,179.27,17.46190038]
[1730209771151,11.88380038,179.31,179.27,19.5235]
[1730209771649,11.88380038,179.35,179.3,11.88380038]
[1730209771819,15.7821,179.36,179.27,47.4143]
[1730209771820,15.7821,179.36,179.32,11.88380038]
[1730209772152,11.88380038,179.35,179.31,5.5769]
[1730209772443,11.88380038,179.35,179.31,19.5192]
[1730209773340,11.88380038,179.36,179.32,11.88380038]
[1730209773642,11.88380038,179.39,179.34,11.88380038]
[1730209774147,11.88380038,179.39,179.35,19.5148]
[1730209775119,33.58520038,179.41,179.36,11.88380038]
[1730209775322,33.58520038,179.41,179.35,31.39860038]
[1730209775323,11.88380038,179.4,179.35,31.39860038]
[1730209775541,27.22410038,179.41,179.36,11.88380038]
[1730209775718,11.88380038,179.41,179.36,11.88380038]
[1730209775919,11.88380038,179.42,179.37,11.88380038]
[1730209776119,11.88380038,179.41,179.36,31.39750038]
[1730209776621,11.88380038,179.42,179.37,11.88380038]
[1730209777139,11.88380038,179.42,179.38,5.5747]
[1730209777541,11.88380038,179.41,179.36,31.39730038]
[1730209778441,7.60237692,179.41,179.36,7.60237692]
[1730209778825,7.60237692,179.42,179.37,7.60237692]
[1730209780248,7.60237692,179.42,179.37,13.17707692]
[1730209782072,22.9039,179.45,179.39,7.60237692]
[1730209782245,29.56077692,179.45,179.4,7.60237692]
[1730209782451,23.98817692,179.45,179.4,7.60237692]
[1730209783170,23.98817692,179.45,179.37,19.5123]
[1730209783171,7.60237692,179.44,179.39,7.60237692]
[1730209783371,23.98817692,179.45,179.4,7.60237692]
[1730209783978,7.60237692,179.46,179.42,19.5072]
[1730209784553,7.60237692,179.45,179.42,19.5072]
[1730209784767,7.60237692,179.46,179.42,19.5072]
[1730209786977,7.60237692,179.45,179.4,13.17617692]
[1730209787658,13.17467692,179.46,179.41,7.60237692]
[1730209787972,7.60237692,179.45,179.4,27.11147692]
[1730209789273,5.5723,179.46,179.37,19.5125]
[1730209789467,7.60237692,179.42,179.38,13.17697692]
[1730209789981,7.60237692,179.43,179.38,13.17697692]
[1730209790150,7.60237692,179.42,179.38,13.17697692]
[1730209790351,7.60237692,179.41,179.37,19.5125]
[1730209790982,7.60237692,179.41,179.37,13.9375]
[1730209791678,7.60237692,179.4,179.37,13.9375]
[1730209792757,7.60237692,179.39,179.37,13.9375]
[1730209793160,7.60237692,179.4,179.37,13.9375]
[1730209793759,7.60237692,179.39,179.34,7.60237692]
[1730209794474,7.60237692,179.4,179.35,7.60237692]
[1730209794877,13.17587692,179.42,179.37,7.60237692]
[1730209795072,7.60237692,179.42,179.37,7.60237692]
[1730209796170,23.776884,179.42,179.38,7.60237692]
[1730209796878,31.37926092,179.42,179.37,7.60237692]
[1730209797083,7.60237692,179.41,179.36,7.60237692]
[1730209798674,7.60237692,179.41,179.37,5.575]
[1730209801186,0.2,179.48,179.37,5.575]
[1730209801187,29.74637692,179.49,179.4,7.60237692]
[1730209801482,7.60237692,179.47,179.42,7.60237692]
[1730209801689,7.60237692,179.46,179.41,7.60237692]
[1730209801885,7.60237692,179.47,179.42,7.60237692]
[1730209802076,5.5706,179.52,179.46,7.60237692]
[1730209802269,7.60237692,179.52,179.47,7.60237692]
[1730209803192,7.60237692,179.52,179.47,13.17407692]
[1730209803364,13.17277692,179.52,179.47,13.17407692]
[1730209803691,16.0926,179.53,179.49,7.60237692]
[1730209803893,23.69497692,179.53,179.48,7.60237692]
[1730209804186,29.26507692,179.53,179.48,7.60237692]
[1730209804796,29.26507692,179.53,179.47,19.5016]
[1730209804797,21.6627,179.53,179.49,11.86258265]
[1730209804965,16.0926,179.53,179.49,11.86258265]
[1730209805369,33.52528265,179.53,179.48,17.43388265]
[1730209807266,27.95518265,179.53,179.48,31.36298265]
[1730209807664,16.0926,179.53,179.49,11.86258265]
[1730209807871,27.95518265,179.53,179.48,31.36298265]
[1730209808074,33.52528265,179.53,179.48,31.36298265]
[1730209808286,5.5701,179.53,179.5,11.86258265]
[1730209808591,17.43268265,179.53,179.48,31.36298265]
[1730209809295,17.43268265,179.53,179.49,11.86258265]
[1730209809668,11.86258265,179.52,179.47,11.86258265]
[1730209810270,11.86258265,179.52,179.43,19.5062]
[1730209810486,17.43268265,179.53,179.48,11.86258265]
[1730209810685,11.86258265,179.55,179.51,11.86258265]
[1730209810869,11.86258265,179.56,179.52,11.86258265]
[1730209811076,20.985,179.58,179.54,11.86258265]
[1730209811293,16.36,179.55,179.46,15.8399]
[1730209811469,16.36,179.55,179.54,11.86258265]
[1730209812292,17.42928265,179.64,179.54,11.86258265]
[1730209812467,17.42928265,179.64,179.52,6.13]
[1730209812468,17.42928265,179.64,179.59,11.86258265]
[1730209812790,16.36,179.6,179.58,11.86258265]
[1730209812971,11.86258265,179.63,179.58,11.86258265]
[1730209813374,11.86258265,179.65,179.6,11.86258265]
[1730209814176,11.86258265,179.67,179.63,11.86258265]
[1730209814385,15.2726,179.72,179.66,11.86258265]
[1730209814577,11.86258265,179.69,179.64,11.86258265]
[1730209814791,11.86258265,179.67,179.62,11.86258265]
[1730209815107,11.86258265,179.68,179.63,11.86258265]
[1730209815265,11.86258265,179.69,179.64,11.86258265]
[1730209816069,5.5645,179.71,179.65,11.86258265]
[1730209816070,11.86258265,179.7,179.65,11.86258265]
[1730209816471,5.5645,179.71,179.57,43.976884]
[1730209816472,11.86258265,179.68,179.64,11.86258265]
[1730209816691,5.5645,179.71,179.61,13.9182]
[1730209816692,11.86258265,179.67,179.62,11.86258265]
[1730209818080,11.86258265,179.67,179.62,17.42978265]
[1730209818276,17.42818265,179.68,179.63,11.86258265]
[1730209818483,11.86258265,179.67,179.62,17.42978265]
[1730209819004,11.86258265,179.66,179.61,25.78078265]
[1730209819204,11.86258265,179.66,179.61,31.34838265]
[1730209820196,11.86258265,179.66,179.62,11.86258265]
[1730209820595,11.86258265,179.66,179.61,31.34838265]
[1730209821291,11.86258265,179.65,179.61,31.34838265]
[1730209821692,11.86258265,179.66,179.61,31.34838265]
[1730209821882,11.86258265,179.65,179.61,31.34838265]
[1730209822284,11.86258265,179.66,179.61,31.34838265]
[1730209824103,17.42858265,179.66,179.61,31.34838265]
[1730209824307,11.86258265,179.65,179.61,31.34838265]
[1730209824792,11.86258265,179.63,179.59,5.568]
[1730209825396,11.86258265,179.62,179.57,31.35308265]
[1730209825803,83.9136,179.68,179.57,31.35308265]
[1730209825804,11.86258265,179.63,179.58,11.86258265]
[1730209826006,11.86258265,179.64,179.59,11.86258265]
[1730209826200,11.86258265,179.65,179.6,11.86258265]
[1730209826597,7.58195531,179.64,179.6,7.58195531]
[1730209826823,5.5651,179.69,179.62,7.58195531]
[1730209827010,7.58195531,179.67,179.62,7.58195531]
[1730209828115,85.2726,179.72,179.64,7.58195531]
[1730209828316,7.58195531,179.69,179.64,7.58195531]
[1730209829301,7.58195531,179.68,179.64,7.58195531]
[1730209829604,7.58195531,179.69,179.64,7.58195531]
[1730209830302,13.14705531,179.69,179.64,13.14855531]
[1730209833396,7.58195531,179.68,179.64,13.14855531]
[1730209833935,5.5645,179.71,179.64,13.14855531]
[1730209834116,7.58195531,179.66,179.62,13.9175]
[1730209834802,7.58195531,179.66,179.62,19.4848]
[1730209835324,7.58195531,179.65,179.62,13.9175]
[1730209835824,7.58195531,179.65,179.6,13.14965531]
[1730209836032,7.58195531,179.65,179.61,7.58195531]
[1730209836233,7.58195531,179.66,179.61,7.58195531]
[1730209837226,13.14805531,179.66,179.61,13.14925531]
[1730209839030,7.58195531,179.67,179.62,7.58195531]
[1730209839221,5.5645,179.71,179.64,7.58195531]
[1730209839417,7.58195531,179.69,179.64,7.58195531]
[1730209839810,7.58195531,179.69,179.61,19.4863]
[1730209839811,13.14645531,179.71,179.66,7.58195531]
[1730209840021,7.58195531,179.7,179.66,7.58195531]
[1730209840233,22.85455531,179.72,179.67,7.58195531]
[1730209840439,7.58195531,179.71,179.66,7.58195531]
[1730209840941,13.14615531,179.72,179.67,7.58195531]
[1730209841127,13.14615531,179.72,179.67,13.14765531]
[1730209841321,7.58195531,179.73,179.68,7.58195531]
[1730209841641,22.60375531,179.76,179.71,7.58195531]
[1730209841814,7.58195531,179.74,179.69,7.58195531]
[1730209842140,20.5848,179.76,179.68,7.58195531]
[1730209842141,7.58195531,179.73,179.68,7.58195531]
[1730209842440,7.58195531,179.74,179.69,7.58195531]
[1730209842616,7.58195531,179.75,179.7,7.58195531]
[1730209842813,13.14555531,179.74,179.69,13.14675531]
[1730209843432,7.58195531,179.72,179.69,5.5648]
[1730209843737,7.58195531,179.73,179.68,7.58195531]
[1730209843940,13.14555531,179.74,179.69,7.58195531]
[1730209844444,13.14555531,179.74,179.68,5.5653]
[1730209844445,5.5636,179.74,179.68,5.5653]
[1730209844648,17.39854156,179.74,179.69,11.83494156]
[1730209845319,20.5848,179.76,179.71,11.83494156]
[1730209845520,11.83494156,179.75,179.71,11.83494156]
[1730209845825,11.83494156,179.75,179.7,11.83494156]
[1730209846631,17.39844156,179.75,179.7,11.83494156]
[1730209847145,11.83494156,179.72,179.67,11.83494156]
[1730209847442,11.83494156,179.73,179.68,11.83494156]
[1730209847650,11.83494156,179.73,179.69,11.83494156]
[1730209847831,11.83494156,179.71,179.66,17.40094156]
[1730209848034,5.5635,179.75,179.63,6.3233]
[1730209848035,11.83494156,179.69,179.65,11.83494156]
[1730209848235,11.83494156,179.68,179.63,18.15824156]
[1730209848438,11.83494156,179.69,179.64,11.83494156]
[1730209848637,17.40014156,179.69,179.64,17.40144156]
[1730209848944,11.83494156,179.66,179.62,34.7457]
[1730209849131,5.5652,179.69,179.58,34.2982]
[1730209849132,11.83494156,179.65,179.6,31.32254156]
[1730209850345,11.83494156,179.66,179.61,11.83494156]
[1730209851646,11.83494156,179.66,179.62,11.83494156]
[1730209852148,11.83494156,179.68,179.63,11.83494156]
[1730209852332,11.83494156,179.69,179.64,11.83494156]
[1730209852739,11.83494156,179.68,179.63,11.83494156]
[1730209853348,11.83494156,179.69,179.65,11.83494156]
[1730209853652,11.83494156,179.69,179.64,11.83494156]
[1730209853951,17.40004156,179.69,179.64,11.83494156]
[1730209854148,11.83494156,179.68,179.63,25.77164156]
[1730209854354,11.83494156,179.67,179.63,13.9367]
[1730209855069,11.83494156,179.67,179.63,19.5036]
[1730209856963,11.83494156,179.66,179.63,0.02]
[1730209857164,11.83494156,179.65,179.63,0.02]
[1730209857863,11.83494156,179.64,179.63,0.02]
[1730209859241,11.83494156,179.66,179.63,0.02]
[1730209861167,11.83494156,179.65,179.63,0.02]
[1730209861764,11.83494156,179.64,179.63,0.02]
[1730209862748,17.40094156,179.66,179.63,0.02]
[1730209862943,11.83494156,179.66,179.63,0.02]
[1730209863173,0.96844353,179.77,179.66,6.0585]
[1730209863471,0.5968412,179.82,179.75,11.83494156]
[1730209863772,6.6610209,179.81,179.78,5.5623]
[1730209864075,0.5968412,179.82,179.78,17.39724156]
[1730209864270,0.5968412,179.82,179.79,11.83494156]
[1730209864572,0.5968412,179.82,179.78,5.5623]
[1730209864573,0.5968412,179.82,179.78,17.39724156]
[1730209864747,0.5968412,179.82,179.78,5.5623]
[1730209864748,18.91297668,179.81,179.78,5.5623]
[1730209864947,18.91297668,179.81,179.77,19.4685]
[1730209865164,0.5968412,179.82,179.77,38.38147668]
[1730209865361,18.91297668,179.81,179.77,19.4685]
[1730209865552,19.50981788,179.82,179.77,38.38147668]
[1730209865753,0.5968412,179.82,179.77,38.38147668]
[1730209865965,19.50981788,179.82,179.77,38.38147668]
[1730209866367,0.5968412,179.82,179.77,38.38147668]
[1730209866667,19.50981788,179.82,179.77,19.4685]
[1730209868342,18.91297668,179.79,179.77,13.9059]
[1730209868549,18.91297668,179.78,179.75,5.5631]
[1730209868755,18.91297668,179.77,179.74,19.4724]
[1730209868952,18.91297668,179.78,179.74,19.4724]
[1730209871284,18.91297668,179.76,179.74,19.4724]
[1730209871656,18.91297668,179.77,179.74,19.4724]
[1730209871857,18.91297668,179.79,179.74,38.38537668]
[1730209872490,18.91297668,179.78,179.74,19.4724]
[1730209872673,18.91297668,179.76,179.74,19.4724]
[1730209872876,18.91297668,179.77,179.74,19.4724]
[1730209873074,18.91297668,179.79,179.74,38.38537668]
[1730209874263,18.91297668,179.76,179.74,19.4724]
[1730209875060,18.91297668,179.77,179.74,19.4724]
[1730209875488,18.91297668,179.77,179.74,13.9089]
[1730209875790,18.91297668,179.78,179.74,13.9089]
[1730209876187,18.91297668,179.81,179.76,18.91297668]
[1730209876693,18.91297668,179.8,179.75,18.91297668]
[1730209876898,18.91297668,179.79,179.74,32.82187668]
[1730209877265,19.50981788,179.82,179.77,18.91297668]
[1730209877684,19.50981788,179.82,179.78,19.4681]
[1730209877987,18.91297668,179.81,179.78,19.4681]
[1730209878695,18.91297668,179.8,179.78,19.4681]
[1730209878887,18.91297668,179.79,179.78,19.4681]
[1730209879785,18.91297668,179.79,179.74,18.91297668]
[1730209879989,18.91297668,179.78,179.75,19.4714]
[1730209880200,0.5968412,179.82,179.75,38.38437668]
[1730209880201,18.91297668,179.8,179.75,38.38437668]
[1730209880674,18.91297668,179.79,179.75,19.4714]
[1730209881376,18.91297668,179.8,179.75,35.04829599]
[1730209881590,18.91297668,179.8,179.75,32.82117668]
[1730209881789,18.91297668,179.79,179.75,13.9082]
[1730209881987,18.91297668,179.77,179.75,13.9082]
[1730209882299,18.91297668,179.76,179.69,19.4779]
[1730209882475,18.91297668,179.73,179.69,19.4779]
[1730209882793,18.91297668,179.74,179.69,68.44405714]
[1730209883005,18.91297668,179.73,179.69,47.3035]
[1730209883374,18.91297668,179.7,179.69,19.4779]
[1730209883580,18.91297668,179.71,179.69,19.4779]
[1730209884497,18.91297668,179.72,179.69,19.4779]
[1730209885086,18.91297668,179.72,179.68,27.8259]
[1730209885288,18.91297668,179.7,179.66,47.3114]
[1730209885478,18.91297668,179.68,179.67,2.22803768]
[1730209885804,18.91297668,179.7,179.66,47.3114]
[1730209886495,11.83751122,179.7,179.66,47.3114]
[1730209886903,11.83751122,179.69,179.66,47.3114]
[1730209887488,11.83751122,179.69,179.66,41.7454]
[1730209887883,11.83751122,179.7,179.66,41.7454]
[1730209888079,11.83751122,179.69,179.66,41.7454]
[1730209889602,11.83751122,179.71,179.66,59.14891122]
[1730209890013,11.83751122,179.71,179.67,2.22821489]
[1730209890311,11.83751122,179.73,179.69,11.83751122]
[1730209891007,11.83751122,179.74,179.7,11.83751122]
[1730209891189,11.83751122,179.77,179.72,11.83751122]
[1730209891587,11.83751122,179.8,179.75,11.83751122]
[1730209891790,11.83751122,179.79,179.74,11.83751122]
[1730209892386,11.83751122,179.79,179.75,11.83751122]
[1730209892803,11.83751122,179.8,179.75,11.83751122]
[1730209893812,0.5968412,179.82,179.79,11.83751122]
[1730209893987,0.5968412,179.82,179.81,11.83751122]
[1730209895305,4.12e-05,179.82,179.81,11.93751122]
[1730209895684,4.12e-05,179.82,179.81,17.49891122]
[1730209895900,4.12e-05,179.82,179.81,17.39891122]
[1730209896885,4.12e-05,179.82,179.81,17.59891122]
[1730209897403,4.12e-05,179.82,179.81,41.37579522]
[1730209897708,4.12e-05,179.82,179.81,41.27579522]
[1730209897913,4.12e-05,179.82,179.81,41.37579522]
[1730209898483,4.12e-05,179.82,179.81,17.49891122]
[1730209898683,4.12e-05,179.82,179.81,17.59891122]
[1730209899614,4.12e-05,179.82,179.81,17.49891122]